fUSD/lending_fUSD_20251110
["ID","MTS","AMOUNT","RATE_DAILY","PERIOD"]
[393536173,1762777862434,-500.0,0.00039463,120]
[393536174,1762777862473,-500.0,0.00039463,120]
[393536175,1762777862512,-500.0,0.00039463,120]
[393536176,1762777862551,-500.0,0.00039463,120]
[393536177,1762777862593,-500.0,0.00039463,120]
[393536178,1762777862632,-500.0,0.00039463,120]
[393536179,1762777862673,-344.43076649,0.00039463,120]
[393536180,1762777862729,-199.81497646,0.00039463,120]
[393536181,1762777862775,-500.0,0.00039463,120]
[393536182,1762777862818,-500.0,0.00039463,120]
[393536183,1762777862860,-500.0,0.00039463,120]
[393536184,1762777862903,-500.0,0.00039463,120]
[393536185,1762777862946,-500.0,0.00039463,120]
[393536186,1762777862993,-500.0,0.00039463,120]
[393536187,1762777863041,-500.0,0.00039463,120]
[393536188,1762777863088,-500.0,0.00039463,120]
[393536189,1762777863135,-500.0,0.00039463,120]
[393536190,1762777863461,-500.0,0.00039463,120]
[393536191,1762777863508,-500.0,0.00039463,120]
[393536192,1762777863554,-500.0,0.00039463,120]
[393536193,1762777863600,-500.0,0.00039463,120]
[393536194,1762777863647,-500.0,0.00039463,120]
[393536195,1762777863692,-500.0,0.00039463,120]
[393536196,1762777863739,-500.0,0.00039463,120]
[393536197,1762777863786,-500.0,0.00039463,120]
[393536198,1762777863831,-509.5,0.00039463,120]
[393536199,1762777863877,-509.5,0.00039463,120]
[393536200,1762777863923,-509.5,0.00039463,120]
[393536201,1762777863971,-509.5,0.00039463,120]
[393536202,1762777864018,-509.5,0.00039463,120]
[393536203,1762777864065,-509.5,0.00039463,120]
[393536204,1762777864111,-509.5,0.00039463,120]
[393536205,1762777864158,-509.5,0.00039463,120]
[393536206,1762777864203,-509.5,0.00039463,120]
[393536207,1762777864248,-509.5,0.00039463,120]
[393536208,1762777864295,-509.5,0.00039463,120]
[393536209,1762777864343,-509.5,0.00039463,120]
[393536210,1762777864393,-509.5,0.00039463,120]
[393536211,1762777864438,-509.5,0.00039463,120]
[393536212,1762777864484,-509.5,0.00039463,120]
[393536213,1762777864528,-509.5,0.00039463,120]
[393536214,1762777864572,-509.5,0.00039463,120]
[393536215,1762777864616,-509.5,0.00039463,120]
[393536216,1762777864661,-509.5,0.00039463,120]
[393536217,1762777864705,-509.5,0.00039463,120]
[393536218,1762777864753,-509.5,0.00039463,120]
[393536219,1762777864801,-509.5,0.00039463,120]
[393536220,1762777864846,-509.5,0.00039463,120]
[393536221,1762777864891,-509.52329655,0.00039463,120]
[393536222,1762777864937,-500.0,0.00039463,120]
[393536223,1762777864982,-209.84043754,0.00039463,120]
[393536224,1762777865029,-500.0,0.00039463,120]
[393536225,1762777865075,-500.0,0.00039463,120]
[393536226,1762777865120,-500.0,0.00039463,120]
[393536227,1762777865167,-500.0,0.00039463,120]
[393536228,1762777865212,-566.78958327,0.00039463,120]
[393536229,1762777865256,-544.88824289,0.00039463,120]
[393536230,1762777865300,-500.0,0.00039463,120]
[393536231,1762777865346,-460.71550597,0.00039463,120]
[393536232,1762777865395,-500.0,0.00039463,120]
[393536233,1762777865441,-150.65642295,0.00039463,120]
[393536234,1762777865485,-500.0,0.00039463,120]
[393536235,1762777865532,-500.0,0.00039463,120]
[393536236,1762777865576,-500.0,0.00039463,120]
[393536237,1762777865620,-500.0,0.00039463,120]
[393536238,1762777865666,-500.0,0.00039463,120]
[393536239,1762777865709,-500.0,0.00039463,120]
[393536240,1762777865752,-500.0,0.00039463,120]
[393536241,1762777865795,-500.0,0.00039463,120]
[393536242,1762777865838,-500.0,0.00039463,120]
[393536243,1762777865883,-500.0,0.00039463,120]
[393536244,1762777865927,-500.0,0.00039463,120]
[393536245,1762777865970,-500.0,0.00039463,120]
[393536246,1762777866014,-500.0,0.00039463,120]
[393536247,1762777866060,-500.0,0.00039463,120]
[393536248,1762777866104,-500.0,0.00039463,120]
[393536249,1762777866148,-500.0,0.00039463,120]
[393536250,1762777866191,-500.0,0.00039463,120]
[393536251,1762777866234,-500.0,0.00039463,120]
[393536252,1762777866277,-500.0,0.00039463,120]
[393536253,1762777866319,-500.0,0.00039463,120]
[393536254,1762777866363,-257.23195219,0.00039463,120]
[393536255,1762777866408,-500.0,0.00039463,120]
[393536256,1762777866450,-582.69364983,0.00039463,120]
[393536257,1762777866494,-500.0,0.00039463,120]
[393536258,1762777866537,-500.0,0.00039463,120]
[393536259,1762777866579,-500.0,0.00039463,120]
[393536260,1762777866622,-500.0,0.00039463,120]
[393536261,1762777866664,-500.0,0.00039463,120]
[393536262,1762777866707,-500.0,0.00039463,120]
[393536263,1762777866751,-584.95447517,0.00039463,120]
[393536264,1762777866795,-474.15372085,0.00039463,120]
[393536265,1762777866839,-500.0,0.00039463,120]
[393536266,1762777866881,-500.0,0.00039463,120]
[393536267,1762777866925,-479.24389608,0.00039463,120]
[393536268,1762777866971,-513.52920294,0.00039463,120]
[393536269,1762777867016,-500.0,0.00039463,120]
[393536270,1762777867063,-500.0,0.00039463,120]
[393536271,1762777867111,-565.89371473,0.00039463,120]
[393536272,1762777867160,-500.0,0.00039463,120]
[393536273,1762777867207,-500.0,0.00039463,120]
[393536274,1762777867253,-500.0,0.00039463,120]
[393536275,1762777867300,-500.0,0.00039463,120]
[393536276,1762777867348,-500.0,0.00039463,120]
[393536277,1762777867398,-500.0,0.00039463,120]
[393536278,1762777867446,-500.0,0.00039463,120]
[393536279,1762777867492,-500.0,0.00039463,120]
[393536280,1762777867536,-500.0,0.00039463,120]
[393536281,1762777867580,-500.0,0.00039463,120]
[393536282,1762777867627,-500.0,0.00039463,120]
[393536283,1762777867671,-500.0,0.00039463,120]
[393536284,1762777867715,-500.0,0.00039463,120]
[393536285,1762777867755,-500.0,0.00039463,120]
[393536286,1762777867794,-500.0,0.00039463,120]
[393536287,1762777867837,-500.0,0.00039463,120]
[393536288,1762777867880,-500.0,0.00039463,120]
[393536289,1762777867923,-344.24357084,0.00039463,120]
[393536290,1762777867967,-500.0,0.00039463,120]
[393536291,1762777868009,-500.0,0.00039463,120]
[393536292,1762777868051,-500.0,0.00039463,120]
[393536293,1762777868096,-500.0,0.00039463,120]
[393536294,1762777868140,-500.0,0.00039463,120]
[393536295,1762777868341,-500.0,0.00039463,120]
[393536296,1762777868390,-500.0,0.00039463,120]
[393536297,1762777868438,-283.79502096,0.00039463,120]
[393536298,1762777868481,-500.0,0.00039463,120]
[393536299,1762777868528,-500.0,0.00039463,120]
[393536300,1762777868570,-500.0,0.00039463,120]
[393536301,1762777868613,-500.0,0.00039463,120]
[393536302,1762777868655,-227.66263044,0.00039463,120]
[393536303,1762777868701,-534.00730527,0.00039463,120]
[393536304,1762777868747,-500.0,0.00039463,120]
[393536305,1762777868792,-500.0,0.00039463,120]
[393536306,1762777868836,-317.3759662,0.00039463,120]
[393536307,1762777868880,-500.0,0.00039463,120]
[393536308,1762777868923,-523.60961029,0.00039463,120]
[393536309,1762777868970,-500.0,0.00039463,120]
[393536310,1762777869018,-538.61125311,0.00039463,120]
[393536311,1762777869066,-500.0,0.00039463,120]
[393536312,1762777869112,-500.0,0.00039463,120]
[393536313,1762777869157,-500.0,0.00039463,120]
[393536314,1762777869202,-500.0,0.00039463,120]
[393536315,1762777869246,-500.0,0.00039463,120]
[393536316,1762777869290,-500.0,0.00039463,120]
[393536317,1762777869335,-500.0,0.00039463,120]
[393536318,1762777869386,-481.8647286,0.00039463,120]
[393536319,1762777869428,-527.1402832,0.00039463,120]
[393536320,1762777869469,-490.36342448,0.00039463,120]
[393536321,1762777869511,-583.23817508,0.00039463,120]
[393536322,1762777869553,-535.85786317,0.00039463,120]
[393536323,1762777869596,-522.10585969,0.00039463,120]
[393536324,1762777869637,-500.0,0.00039463,120]
[393536325,1762777869680,-500.0,0.00039463,120]
[393536326,1762777869723,-500.0,0.00039463,120]
[393536327,1762777869765,-500.0,0.00039463,120]
[393536328,1762777869806,-500.0,0.00039463,120]
[393536329,1762777869846,-500.0,0.00039463,120]
[393536330,1762777869886,-500.0,0.00039463,120]
[393536331,1762777869927,-500.0,0.00039463,120]
[393536332,1762777869969,-500.0,0.00039463,120]
[393536333,1762777870013,-500.0,0.00039463,120]
[393536334,1762777870057,-500.0,0.00039463,120]
[393536335,1762777870102,-151.36497869,0.00039463,120]
[393536336,1762777870146,-228.86316836,0.00039463,120]
[393536337,1762777870188,-174.91557664,0.00039463,120]
[393536338,1762777870231,-574.39892343,0.00039463,120]
[393536339,1762777870272,-578.16071936,0.00039463,120]
[393536340,1762777870314,-500.0,0.00039463,120]
[393536341,1762777870362,-500.0,0.00039463,120]
[393536342,1762777870405,-500.0,0.00039463,120]
[393536343,1762777870448,-500.0,0.00039463,120]
[393536344,1762777870490,-500.0,0.00039463,120]
[393536345,1762777870530,-500.0,0.00039463,120]
[393536346,1762777870570,-500.0,0.00039463,120]
[393536347,1762777870609,-500.0,0.00039463,120]
[393536348,1762777870648,-500.0,0.00039463,120]
[393536349,1762777870686,-500.0,0.00039463,120]
[393536350,1762777870728,-500.0,0.00039463,120]
[393536351,1762777870768,-500.0,0.00039463,120]
[393536352,1762777870810,-500.0,0.00039463,120]
[393536353,1762777870851,-500.0,0.00039463,120]
[393536354,1762777870893,-500.0,0.00039463,120]
[393536355,1762777870936,-500.0,0.00039463,120]
[393536356,1762777870980,-500.0,0.00039463,120]
[393536357,1762777871022,-500.0,0.00039463,120]
[393536358,1762777871063,-500.0,0.00039463,120]
[393536359,1762777871104,-500.0,0.00039463,120]
[393536360,1762777871144,-500.0,0.00039463,120]
[393536361,1762777871184,-500.0,0.00039463,120]
[393536362,1762777871226,-500.0,0.00039463,120]
[393536363,1762777871268,-500.0,0.00039463,120]
[393536364,1762777871310,-500.0,0.00039463,120]
[393536365,1762777871351,-500.0,0.00039463,120]
[393536366,1762777871398,-500.0,0.00039463,120]
[393536367,1762777871439,-566.90775963,0.00039463,120]
[393536368,1762777871481,-500.0,0.00039463,120]
[393536369,1762777871526,-182.30122481,0.00039463,120]
[393536370,1762777871570,-510.785209,0.00039463,120]
[393536371,1762777871613,-500.0,0.00039463,120]
[393536372,1762777871657,-209.20020703,0.00039463,120]
[393536373,1762777871701,-500.0,0.00039463,120]
[393536374,1762777871747,-500.0,0.00039463,120]
[393536375,1762777871790,-500.0,0.00039463,120]
[393536376,1762777871832,-500.0,0.00039463,120]
[393536377,1762777871874,-500.0,0.00039463,120]
[393536378,1762777871917,-500.0,0.00039463,120]
[393536379,1762777871959,-500.0,0.00039463,120]
[393536380,1762777872002,-500.0,0.00039463,120]
[393536381,1762777872045,-500.0,0.00039463,120]
[393536382,1762777872088,-234.34377553,0.00039463,120]
[393536383,1762777872128,-473.53428442,0.00039463,120]
[393536384,1762777872170,-500.0,0.00039463,120]
[393536385,1762777872212,-500.0,0.00039463,120]
[393536386,1762777872253,-500.0,0.00039463,120]
[393536387,1762777872293,-269.65766291,0.00039463,120]
[393536388,1762777872333,-3300.0,0.00039463,120]
[393536389,1762777872377,-113662.92,0.00039463,60]
[393536390,1762777872420,-705.23942793,0.00039463,120]
[393536391,1762777872463,-500.0,0.00039463,120]
[393536392,1762777872505,-261.71834851,0.00039463,120]
[393536393,1762777872549,-891.75,0.00039463,120]
[393536394,1762777872594,-891.75,0.00039463,120]
[393536395,1762777872636,-891.75,0.00039463,120]
[393536396,1762777872678,-891.75,0.00039463,120]
[393536397,1762777872719,-891.75,0.00039463,120]
[393536398,1762777872762,-891.75,0.00039463,120]
[393536399,1762777872956,-891.75,0.00039463,120]
[393536400,1762777873004,-891.75,0.00039463,120]
[393536401,1762777873049,-891.75,0.00039463,120]
[393536402,1762777873093,-891.75,0.00039463,120]
[393536403,1762777873138,-891.75,0.00039463,120]
[393536404,1762777873185,-891.75,0.00039463,120]
[393536405,1762777873230,-891.75,0.00039463,120]
[393536406,1762777873275,-891.75,0.00039463,120]
[393536407,1762777873319,-891.75,0.00039463,120]
[393536408,1762777873367,-891.75,0.00039463,120]
[393536409,1762777873412,-891.75,0.00039463,120]
[393536410,1762777873455,-891.75,0.00039463,120]
[393536411,1762777873500,-891.75,0.00039463,120]
[393536412,1762777873545,-891.75,0.00039463,120]
[393536413,1762777873589,-891.75,0.00039463,120]
[393536414,1762777873636,-891.75,0.00039463,120]
[393536415,1762777873683,-891.75,0.00039463,120]
[393536416,1762777873730,-891.82276121,0.00039463,120]
[393536417,1762777873774,-960.74953387,0.00039463,120]
[393536418,1762777873818,-524.1033703,0.00039463,120]
[393536419,1762777873861,-640.9281014,0.00039463,120]
[393536420,1762777873905,-500.0,0.00039463,120]
[393536421,1762777873950,-277.97,0.00039463,120]
[393536422,1762777873995,-500.0,0.00039463,120]
[393536423,1762777874041,-500.0,0.00039463,120]
[393536424,1762777874087,-571.28,0.00039463,120]
[393536425,1762777874134,-500.0,0.00039463,120]
[393536426,1762777874182,-224.41980354,0.00039463,120]
[393536427,1762777874229,-500.0,0.00039463,120]
[393536428,1762777874275,-518.98584905,0.00039463,120]
[393536429,1762777874317,-560.79619375,0.00039463,120]
[393536430,1762777874361,-500.0,0.00039463,120]
[393536431,1762777874403,-163.46607897,0.00039463,120]
[393536432,1762777874445,-500.0,0.00039463,120]
[393536433,1762777874487,-500.0,0.00039463,120]
[393536434,1762777874528,-500.0,0.00039463,120]
[393536435,1762777874571,-500.0,0.00039463,120]
[393536436,1762777874615,-500.0,0.00039463,120]
[393536437,1762777874656,-500.0,0.00039463,120]
[393536438,1762777874695,-536.87023311,0.00039463,120]
[393536439,1762777874734,-521.94034539,0.00039463,120]
[393536440,1762777874772,-500.0,0.00039463,120]
[393536441,1762777874811,-500.0,0.00039463,120]
[393536442,1762777874850,-248.96,0.00039463,120]
[393536443,1762777874888,-272.17734246,0.00039463,120]
[393536444,1762777874928,-500.0,0.00039463,120]
[393536445,1762777874970,-500.0,0.00039463,120]
[393536446,1762777875015,-500.0,0.00039463,120]
[393536447,1762777875059,-500.0,0.00039463,120]
[393536448,1762777875103,-500.0,0.00039463,120]
[393536449,1762777875146,-389.17,0.00039463,120]
[393536450,1762777875189,-500.0,0.00039463,120]
[393536451,1762777875230,-525.66821996,0.00039463,120]
[393536452,1762777875270,-500.0,0.00039463,120]
[393536453,1762777875309,-516.92924799,0.00039463,120]
[393536454,1762777875353,-500.0,0.00039463,120]
[393536455,1762777875401,-517.13477283,0.00039463,120]
[393536456,1762777875442,-500.0,0.00039463,120]
[393536457,1762777875482,-500.0,0.00039463,120]
[393536458,1762777875522,-500.0,0.00039463,120]
[393536459,1762777875561,-536.75983101,0.00039463,120]
[393536460,1762777875601,-507.41734173,0.00039463,120]
[393536461,1762777875640,-500.0,0.00039463,120]
[393536463,1762777875680,-500.0,0.00039463,120]
[393536464,1762777875720,-500.0,0.00039463,120]
[393536465,1762777875762,-549.15349493,0.00039463,120]
[393536466,1762777875805,-500.0,0.00039463,120]
[393536467,1762777875847,-500.0,0.00039463,120]
[393536468,1762777875888,-500.0,0.00039463,120]
[393536469,1762777875930,-500.0,0.00039463,120]
[393536470,1762777875974,-547.8122452,0.00039463,120]
[393536471,1762777876018,-500.0,0.00039463,120]
[393536472,1762777876063,-500.0,0.00039463,120]
[393536473,1762777876107,-513.16,0.00039463,120]
[393536474,1762777876151,-568.17,0.00039463,120]
[393536475,1762777876195,-500.0,0.00039463,120]
[393536476,1762777876238,-500.0,0.00039463,120]
[393536477,1762777876282,-500.0,0.00039463,120]
[393536478,1762777876324,-500.0,0.00039463,120]
[393536479,1762777876368,-500.0,0.00039463,120]
[393536480,1762777876412,-500.0,0.00039463,120]
[393536481,1762777876458,-185.11,0.00039463,120]
[393536482,1762777876501,-500.0,0.00039463,120]
[393536483,1762777876543,-500.0,0.00039463,120]
[393536484,1762777876585,-500.0,0.00039463,120]
[393536485,1762777876627,-595.27570915,0.00039463,120]
[393536486,1762777876671,-500.0,0.00039463,120]
[393536487,1762777876713,-180.24903341,0.00039463,120]
[393536488,1762777876758,-517.61400693,0.00039463,120]
[393536489,1762777876802,-578.87342247,0.00039463,120]
[393536490,1762777876846,-500.0,0.00039463,120]
[393536491,1762777876891,-545.65,0.00039463,120]
[393536492,1762777876935,-263.18515126,0.00039463,120]
[393536493,1762777876978,-500.0,0.00039463,120]
[393536494,1762777877021,-500.0,0.00039463,120]
[393536495,1762777877064,-393.11777028,0.00039463,120]
[393536496,1762777877106,-500.0,0.00039463,120]
[393536497,1762777877149,-399.48048112,0.00039463,120]
[393536498,1762777877190,-500.0,0.00039463,120]
[393536499,1762777877229,-500.0,0.00039463,120]
[393536500,1762777877268,-500.0,0.00039463,120]
[393536501,1762777877305,-510.07168585,0.00039463,120]
[393536502,1762777877344,-500.0,0.00039463,120]
[393536503,1762777877386,-535.89912365,0.00039463,120]
[393536504,1762777877424,-500.0,0.00039463,120]
[393536505,1762777877643,-600.28039351,0.00039463,120]
[393536506,1762777877687,-500.0,0.00039463,120]
[393536507,1762777877727,-329.51058469,0.00039463,120]
[393536508,1762777877766,-437.51322604,0.00039463,120]
[393536509,1762777877804,-500.0,0.00039463,120]
[393536510,1762777877840,-552.86135297,0.00039463,120]
[393536511,1762777877877,-500.0,0.00039463,120]
[393536512,1762777877916,-500.0,0.00039463,120]
[393536513,1762777877954,-330.75,0.00039463,120]
[393536514,1762777877993,-500.0,0.00039463,120]
[393536515,1762777878032,-526.8405732,0.00039463,120]
[393536516,1762777878071,-500.0,0.00039463,120]
[393536517,1762777878109,-475.42,0.00039463,120]
[393536518,1762777878149,-500.0,0.00039463,120]
[393536519,1762777878188,-500.0,0.00039463,120]
[393536520,1762777878228,-222.4,0.00039463,120]
[393536521,1762777878267,-529.58728876,0.00039463,120]
[393536522,1762777878305,-500.0,0.00039463,120]
[393536523,1762777878341,-500.0,0.00039463,120]
[393536524,1762777878378,-522.16912095,0.00039463,120]
[393536525,1762777878418,-565.96892567,0.00039463,120]
[393536526,1762777878456,-574.41810953,0.00039463,120]
[393536527,1762777878497,-500.0,0.00039463,120]
[393536528,1762777878537,-537.9411748,0.00039463,120]
[393536529,1762777878573,-500.0,0.00039463,120]
[393536530,1762777878611,-500.0,0.00039463,120]
[393536531,1762777878648,-500.0,0.00039463,120]
[393536532,1762777878685,-460.01,0.00039463,120]
[393536533,1762777878722,-500.0,0.00039463,120]
[393536534,1762777878759,-528.64311087,0.00039463,120]
[393536535,1762777878797,-542.93,0.00039463,120]
[393536536,1762777878836,-563.86,0.00039463,120]
[393536537,1762777878875,-304.80695218,0.00039463,120]
[393536538,1762777878913,-552.49462906,0.00039463,120]
[393536539,1762777878952,-500.0,0.00039463,120]
[393536540,1762777878990,-623.3352199,0.00039463,120]
[393536541,1762777879030,-500.0,0.00039463,120]
[393536542,1762777879070,-540.48769431,0.00039463,120]
[393536543,1762777879111,-500.0,0.00039463,120]
[393536544,1762777879152,-500.0,0.00039463,120]
[393536545,1762777879192,-504.45160062,0.00039463,120]
[393536546,1762777879230,-500.0,0.00039463,120]
[393536547,1762777879266,-500.0,0.00039463,120]
[393536548,1762777879304,-585.42464267,0.00039463,120]
[393536549,1762777879342,-500.0,0.00039463,120]
[393536550,1762777879388,-500.0,0.00039463,120]
[393536551,1762777879429,-500.0,0.00039463,120]
[393536552,1762777879470,-519.57082188,0.00039463,120]
[393536553,1762777879507,-519.38969988,0.00039463,120]
[393536554,1762777879544,-546.83630798,0.00039463,120]
[393536555,1762777879580,-499.6804202,0.00039463,120]
[393536556,1762777879619,-500.0,0.00039463,120]
[393536557,1762777879656,-500.0,0.00039463,120]
[393536558,1762777879694,-265.00665756,0.00039463,120]
[393536559,1762777879731,-523.16096812,0.00039463,120]
[393536560,1762777879768,-524.11192876,0.00039463,120]
[393536561,1762777879806,-500.0,0.00039463,120]
[393536562,1762777879845,-641.44,0.00039463,120]
[393536563,1762777879884,-500.0,0.00039463,120]
[393536564,1762777879929,-500.0,0.00039463,120]
[393536565,1762777879972,-513.70647503,0.00039463,120]
[393536566,1762777880013,-500.0,0.00039463,120]
[393536567,1762777880054,-500.0,0.00039463,120]
[393536568,1762777880094,-500.0,0.00039463,120]
[393536569,1762777880133,-500.0,0.00039463,120]
[393536570,1762777880174,-500.0,0.00039463,120]
[393536571,1762777880214,-515.90475346,0.00039463,120]
[393536572,1762777880254,-585.61,0.00039463,120]
[393536573,1762777880295,-500.0,0.00039463,120]
[393536574,1762777880337,-500.0,0.00039463,120]
[393536575,1762777880378,-540.04830086,0.00039463,120]
[393536576,1762777880419,-500.0,0.00039463,120]
[393536577,1762777880460,-545.33509141,0.00039463,120]
[393536578,1762777880498,-500.0,0.00039463,120]
[393536579,1762777880535,-529.94456308,0.00039463,120]
[393536580,1762777880572,-500.0,0.00039463,120]
[393536581,1762777880614,-500.0,0.00039463,120]
[393536582,1762777880653,-500.0,0.00039463,120]
[393536583,1762777880691,-500.0,0.00039463,120]
[393536584,1762777880729,-500.0,0.00039463,120]
[393536585,1762777880779,-500.0,0.00039463,120]
[393536586,1762777880816,-500.0,0.00039463,120]
[393536587,1762777880853,-513.89,0.00039463,120]
[393536588,1762777880890,-528.99325632,0.00039463,120]
[393536589,1762777880928,-563.9554197,0.00039463,120]
[393536590,1762777880971,-500.0,0.00039463,120]
[393536591,1762777881010,-161.48,0.00039463,120]
[393536592,1762777881048,-500.0,0.00039463,120]
[393536593,1762777881088,-500.0,0.00039463,120]
[393536594,1762777881129,-500.0,0.00039463,120]
[393536595,1762777881170,-583.29,0.00039463,120]
[393536596,1762777881208,-500.0,0.00039463,120]
[393536597,1762777881244,-500.0,0.00039463,120]
[393536598,1762777881283,-500.0,0.00039463,120]
[393536599,1762777881319,-223.32899946,0.00039463,120]
[393536600,1762777881363,-500.0,0.00039463,120]
[393536601,1762777881399,-500.0,0.00039463,120]
[393536602,1762777881438,-519.81017027,0.00039463,120]
[393536603,1762777881475,-500.0,0.00039463,120]
[393536604,1762777881512,-500.0,0.00039463,120]
[393536605,1762777881553,-239.84,0.00039463,120]
[393536606,1762777881595,-500.0,0.00039463,120]
[393536607,1762777881646,-512.66929021,0.00039463,120]
[393536608,1762777881688,-500.0,0.00039463,120]
[393536609,1762777881909,-360.15462618,0.00039463,120]
[393536610,1762777881954,-552.36297032,0.00039463,120]
[393536611,1762777881998,-644.41,0.00039463,120]
[393536612,1762777882041,-500.0,0.00039463,120]
[393536613,1762777882084,-500.0,0.00039463,120]
[393536614,1762777882126,-529.63570218,0.00039463,120]
[393536615,1762777882167,-500.0,0.00039463,120]
[393536616,1762777882207,-500.0,0.00039463,120]
[393536617,1762777882246,-500.0,0.00039463,120]
[393536618,1762777882284,-500.0,0.00039463,120]
[393536619,1762777882322,-283.72,0.00039463,120]
[393536620,1762777882360,-500.0,0.00039463,120]
[393536621,1762777882400,-500.0,0.00039463,120]
[393536622,1762777882438,-500.0,0.00039463,120]
[393536623,1762777882474,-500.0,0.00039463,120]
[393536624,1762777882510,-500.0,0.00039463,120]
[393536625,1762777882548,-308.84,0.00039463,120]
[393536626,1762777882585,-500.0,0.00039463,120]
[393536627,1762777882621,-175.3,0.00039463,120]
[393536628,1762777882658,-500.0,0.00039463,120]
[393536629,1762777882694,-299.97,0.00039463,120]
[393536630,1762777882731,-500.0,0.00039463,120]
[393536631,1762777882766,-208.24,0.00039463,120]
[393536632,1762777882802,-509.68631176,0.00039463,120]
[393536633,1762777882839,-252.12454405,0.00039463,120]
[393536634,1762777882876,-500.0,0.00039463,120]
[393536635,1762777882913,-233.27,0.00039463,120]
[393536636,1762777882951,-536.96642196,0.00039463,120]
[393536637,1762777882989,-500.0,0.00039463,120]
[393536638,1762777883029,-564.67,0.00039463,120]
[393536639,1762777883071,-500.0,0.00039463,120]
[393536640,1762777883113,-500.0,0.00039463,120]
[393536641,1762777883154,-495.43484402,0.00039463,120]
[393536642,1762777883195,-588.86,0.00039463,120]
[393536643,1762777883236,-500.0,0.00039463,120]
[393536644,1762777883276,-542.1755997,0.00039463,120]
[393536645,1762777883317,-500.0,0.00039463,120]
[393536646,1762777883358,-500.0,0.00039463,120]
[393536647,1762777883403,-612.01744251,0.00039463,120]
[393536648,1762777883443,-549.02493434,0.00039463,120]
[393536649,1762777883483,-523.2691755,0.00039463,120]
[393536650,1762777883526,-500.0,0.00039463,120]
[393536651,1762777883566,-500.0,0.00039463,120]
[393536652,1762777883607,-500.0,0.00039463,120]
[393536653,1762777883647,-500.0,0.00039463,120]
[393536655,1762777883688,-500.0,0.00039463,120]
[393536656,1762777883730,-500.0,0.00039463,120]
[393536657,1762777883771,-500.0,0.00039463,120]
[393536658,1762777883813,-500.0,0.00039463,120]
[393536659,1762777883855,-542.23716928,0.00039463,120]
[393536660,1762777883896,-500.0,0.00039463,120]
[393536661,1762777883940,-500.0,0.00039463,120]
[393536662,1762777883985,-582.24,0.00039463,120]
[393536663,1762777884033,-500.0,0.00039463,120]
[393536664,1762777884081,-500.0,0.00039463,120]
[393536665,1762777884129,-500.0,0.00039463,120]
[393536666,1762777884177,-422.46,0.00039463,120]
[393536667,1762777884222,-500.0,0.00039463,120]
[393536668,1762777884267,-500.0,0.00039463,120]
[393536669,1762777884308,-597.67,0.00039463,120]
[393536670,1762777884349,-544.60268999,0.00039463,120]
[393536671,1762777884396,-518.72,0.00039463,120]
[393536672,1762777884440,-500.0,0.00039463,120]
[393536673,1762777884485,-500.0,0.00039463,120]
[393536674,1762777884530,-526.06706655,0.00039463,120]